fUSD/lending_fUSD_20240116
["ID","MTS","AMOUNT","RATE_DAILY","PERIOD"]
[311791986,1705393841887,-649.02,0.00022998,2]
[311791987,1705393842110,-100218.83220275,0.00022998,2]
[311791988,1705393842121,-954.65352994,0.00022998,3]
[311791989,1705393842131,-1708.02080546,0.00022998,2]
[311791990,1705393842142,-159.2957852,0.00022998,2]
[311791991,1705393842152,-521.17755723,0.00022998,2]
[311791992,1705393842163,-2305.14365571,0.00022998,2]
[311791993,1705393842172,-211.54056267,0.00022998,2]
[311791994,1705393842182,-10548.52020323,0.00022998,2]
[311791995,1705393842191,-7116.3132561,0.00022998,2]
[311791996,1705393842200,-4776.9814718,0.00022998,2]
[311791997,1705393842210,-1184.25551213,0.00022999,3]
[311791998,1705393842219,-582.84047001,0.00022999,2]
[311791999,1705393842229,-76020.73198487,0.00022999,2]
[311792000,1705393842255,-324.83345453,0.00022999,2]
[311792001,1705393842280,-831.8685269,0.00022999,2]
[311792002,1705393842292,-1349.68878191,0.00022999,2]
[311792003,1705393842304,-640.041,0.00022999,2]
[311792004,1705393842316,-330.0,0.00022999,2]
[311792005,1705393842328,-495.56335415,0.00022999,2]
[311792019,1705393843023,-1128.141,0.00022889,2]
[311792020,1705393843034,-150.01,0.00022996,2]
[311792021,1705393843044,-3295.05728793,0.00022996,2]
[311792022,1705393843053,-3754.99488165,0.00022999,2]
[311792023,1705393843066,-7973.9466717,0.00022999,2]
[311792024,1705393843078,-1192.9975616,0.00022999,2]
[311792025,1705393843099,-201656.64557057,0.00022999,2]
[311792026,1705393843110,-541.88479081,0.00022999,2]
[311792027,1705393843136,-259.2978619,0.00022999,2]
[311792028,1705393843148,-864.39749552,0.00022999,2]
[311792029,1705393843160,-2137.2968041,0.00022999,2]
[311792030,1705393843173,-5177.05066905,0.00022999,2]
[311792031,1705393843201,-8035.34660471,0.00022999,2]
[311792032,1705393843213,-549.87191097,0.00022999,2]
[311792033,1705393843225,-717.14339935,0.00022999,2]
[311792034,1705393843237,-409.79455518,0.00022999,2]
[311792035,1705393843249,-5512.38230237,0.00022999,2]
[311792036,1705393843298,-266.43816103,0.00022904,2]
[311792037,1705393843310,-27.78183897,0.00022904,2]
[311792038,1705393843319,-542.0763569,0.00022999,2]
[311792039,1705393843331,-3788.6615136,0.00022999,2]
[311792040,1705393843343,-1588.94284284,0.00022999,2]
[311792041,1705393843392,-920.32722448,0.00022999,2]
[311792042,1705393843404,-1367.80188262,0.00022999,2]
[311792043,1705393843433,-3069.63889084,0.00022999,2]
[311792045,1705393843446,-7263.01490479,0.00022999,2]
[311792046,1705393843458,-4260.54674712,0.00022999,2]
[311792047,1705393843470,-3811.06024139,0.00022999,2]
[311792048,1705393843482,-405.00113522,0.00022999,2]
[311792076,1705393846382,-250.0,0.000229,2]
[311792077,1705393846393,-345.87151147,0.00022999,2]
[311792078,1705393846405,-2917.07191089,0.00022999,2]
[311792079,1705393846427,-7621.31178471,0.00022999,2]
[311792081,1705393846447,-736.19737716,0.00022999,2]
[311792082,1705393846473,-411.21732355,0.00022999,2]
[311792083,1705393846484,-652.38094598,0.00022999,2]
[311792084,1705393846500,-1467.87505136,0.00022999,2]
[311792085,1705393934936,150.0,0.0002206,2]
[311792086,1705394000661,10632.94111659,0.00022044,2]
[311792087,1705394000690,2404.09888341,0.00022044,2]
[311792093,1705394078150,5000.0,0.000251,30]
[311792094,1705394103740,150.0,0.00021947,2]
[311792095,1705394103768,168.51,0.00021947,2]
[311792096,1705394110487,158.06,0.00021954,2]
[311792097,1705394117099,4166.64,0.00021942,2]
[311792098,1705394176285,152.8,0.00021954,2]
[311792099,1705394190904,275.6189892,0.00026,27]
[311792100,1705394267054,560.68,0.00021863,2]
[311792101,1705394271836,245.49,0.00019945,2]
[311792102,1705394296946,5000.0,0.00022,2]
[311792103,1705394300869,5000.0,0.00022,2]
[311792104,1705394301612,150.0,0.00022,2]
[311792105,1705394302110,5000.0,0.00022,2]
[311792106,1705394303158,5000.0,0.00022,2]
[311792107,1705394304634,200.0,0.0002176,2]
[311792108,1705394307014,5000.0,0.00022,2]
[311792109,1705394307321,5000.0,0.00022,2]
[311792110,1705394307525,272.6,0.0002177,2]
[311792111,1705394307870,5000.0,0.00022,2]
[311792112,1705394308221,5000.0,0.00022,2]
[311792113,1705394308538,5000.0,0.00022,2]
[311792114,1705394313390,150.0,0.00022022,2]
[311792115,1705394315966,500.0,0.00021755,2]
[311792116,1705394316338,5000.0,0.00022,2]
[311792117,1705394331262,4295.0,0.00022,2]
[311792118,1705394362976,172.16,0.00021875,2]
[311792119,1705394496549,23880.0,0.00021555,2]
[311792120,1705394497505,164.39,0.00021555,2]
[311792122,1705394545796,160.98,0.00021478,2]
[311792123,1705394684055,309.82,0.00021291,2]
[311792124,1705394692988,925.75,0.00021268,2]
[311792125,1705394722201,551.45,0.00021239,2]
[311792126,1705394732982,366.45,0.00021233,2]
[311792127,1705394748424,242.08,0.00019311,2]
[311792128,1705394748653,242.08,0.00021575,2]
[311792129,1705394776211,158.16,0.0002121,2]
[311792131,1705394969273,166.89,0.00021317,2]
[311792132,1705394969381,166.89,0.00021872,2]
[311792133,1705394974502,369.58184601,0.00022019,2]
[311792134,1705394976384,-12000.0,0.000221,2]
[311792135,1705394977643,-12000.0,0.000221,2]
[311792136,1705394997148,-12000.0,0.00022099,2]
[311792137,1705395006703,309.90412142,0.00022019,2]
[311792161,1705395032549,-206.32546733,0.00022098,2]
[311792162,1705395032558,-155.37660646,0.00022098,2]
[311792163,1705395032567,-150.0,0.00022099,2]
[311792164,1705395032576,-149.98069695,0.00022099,2]
[311792165,1705395032604,-500.61671431,0.00022099,2]
[311792166,1705395032618,-3126.92133048,0.00022099,2]
[311792167,1705395032630,-350.0,0.00022099,2]
[311792168,1705395032674,155.92,0.00021134,2]
[311792169,1705395032686,-39591.62522125,0.00022099,2]
[311792172,1705395032706,-22402.20611613,0.00022099,2]
[311792174,1705395032718,-943.99514713,0.00022099,2]
[311792177,1705395032729,-6194.86897003,0.00022099,2]
[311792179,1705395032740,-2224.53765689,0.00022099,2]
[311792181,1705395032752,-453.52110926,0.00022099,2]
[311792185,1705395032778,-1133.59054404,0.00022099,2]
[311792187,1705395032794,-1542.2530309,0.00022099,2]
[311792191,1705395032817,-392.07109525,0.00022099,2]
[311792193,1705395032828,-965.17012946,0.00022099,2]
[311792195,1705395032839,-1072.87753328,0.00022099,2]
[311792204,1705395038172,-3018.19296304,0.00022099,2]
[311792205,1705395038231,-446.04655466,0.00022099,2]
[311792206,1705395038243,-1403.83526351,0.00022099,2]
[311792207,1705395038294,-18378.24867661,0.00022099,2]
[311792208,1705395038307,-381.7775019,0.00022099,2]
[311792209,1705395038352,-1705166.89452592,0.00022099,2]
[311792210,1705395038362,-941175.27122919,0.00022099,2]
[311792211,1705395038371,-150.0,0.00022119,2]
[311792212,1705395038380,-732.93,0.00022119,2]
[311792213,1705395038390,-721.11,0.00022119,2]
[311792214,1705395038399,-720.98,0.00022119,2]
[311792215,1705395038408,-724.11,0.00022119,2]
[311792216,1705395038418,-724.37,0.00022119,2]
[311792217,1705395038427,-715.71,0.00022119,2]
[311792218,1705395038436,-714.8,0.00022119,2]
[311792219,1705395038446,-729.33,0.00022119,2]
[311792220,1705395038455,-727.84,0.00022119,2]
[311792221,1705395038464,-499.99,0.00022119,2]
[311792222,1705395038473,-713.1,0.00022119,2]
[311792223,1705395038482,-716.71,0.0002212,2]
[311792224,1705395038492,-717.79,0.0002212,2]
[311792225,1705395038502,-725.23,0.0002212,2]
[311792226,1705395038512,-723.68,0.0002212,2]
[311792227,1705395038522,-711.42,0.0002212,2]
[311792228,1705395038531,-738.17,0.0002212,2]
[311792229,1705395038540,-731.1,0.0002212,2]
[311792230,1705395038552,-710.5,0.0002212,2]
[311792231,1705395038561,-713.99,0.0002212,2]
[311792232,1705395038572,-711.99,0.0002212,2]
[311792233,1705395038581,-726.83,0.0002212,2]
[311792235,1705395038591,-736.78,0.0002212,2]
[311792237,1705395038600,-712.02,0.00022121,2]
[311792239,1705395038609,-729.98,0.00022121,2]
[311792241,1705395038618,-731.42,0.00022121,2]
[311792243,1705395038628,-729.3,0.00022121,2]
[311792245,1705395038637,-721.24,0.00022121,2]
[311792247,1705395038646,-713.16,0.00022121,2]
[311792249,1705395038656,-728.22,0.00022121,2]
[311792251,1705395038665,-710.98,0.00022121,2]
[311792253,1705395038674,-719.4,0.00022121,2]
[311792255,1705395038684,-714.13,0.00022122,2]
[311792257,1705395038693,-718.51,0.00022122,2]
[311792259,1705395038702,-712.88,0.00022122,2]
[311792261,1705395038712,-729.05,0.00022122,2]
[311792263,1705395038722,-715.32,0.00022122,2]
[311792265,1705395038731,-737.01,0.00022122,2]
[311792267,1705395038741,-729.0,0.00022122,2]
[311792269,1705395038751,-716.93,0.00022122,2]
[311792271,1705395038760,-713.91,0.00022122,2]
[311792273,1705395038769,-728.81,0.00022122,2]
[311792275,1705395038779,-157.96,0.00022139,2]
[311792277,1705395038789,-726.2,0.00022185,2]
[311792279,1705395038800,-1250.96,0.000222,2]
[311792281,1705395038810,-861.172,0.000222,2]
[311792283,1705395038820,-178.39817792,0.000222,2]
[311792285,1705395038829,-153.67881354,0.000222,2]
[311792287,1705395038838,-505534.28686793,0.000222,2]
[311792289,1705395038848,-721.08,0.00022242,2]
[311792291,1705395038858,-309.82,0.00022269,2]
[311792293,1705395038868,-158.16,0.0002227,2]
[311792296,1705395038877,-521.17755723,0.00022298,2]
[311792298,1705395038887,-11473.15203215,0.00022298,2]
[311792300,1705395038897,-161.9690947,0.000223,2]
[311792302,1705395038906,-37319.0,0.000224,2]
[311792304,1705395038915,-166.89,0.00022428,2]
[311792306,1705395038924,-309.90412142,0.0002246,2]
[311792308,1705395038933,-12294.16339703,0.000225,2]
[311792310,1705395038943,-206.0,0.00022624,2]
[311792312,1705395038952,-294.22,0.000227,2]
[311792314,1705395038962,-294.22,0.000227,2]
[311792316,1705395038972,-294.22,0.000227,2]
[311792318,1705395038982,-588.44,0.000227,2]
[311792320,1705395038992,-154.0,0.00022766,2]
[311792322,1705395039002,-1040.28791122,0.00022768,2]
[311792324,1705395039012,-280.79430241,0.00022768,2]
[311792326,1705395039022,-200.0,0.00022777,2]
[311792328,1705395039033,-294.22,0.000228,2]
[311792330,1705395039044,-294.22,0.000228,2]
[311792332,1705395039054,-294.22,0.000228,2]
[311792334,1705395039063,-294.22,0.000228,2]
[311792336,1705395039073,-294.22,0.000228,2]
[311792337,1705395039083,-716.93,0.00022855,2]
[311792340,1705395039092,-12056.3015,0.00022898,2]
[311792342,1705395039102,-500.0,0.00022898,2]
[311792344,1705395039111,-250.0,0.000229,2]
[311792346,1705395039120,-401.54,0.000229,2]
[311792348,1705395039129,-314.46,0.000229,2]
[311792350,1705395039139,-314.46,0.000229,2]
[311792352,1705395039148,-314.46,0.000229,2]
[311792354,1705395039157,-494.57,0.000229,2]
[311792356,1705395039166,-150.2705421,0.000229,2]
[311792358,1705395039175,-294.22,0.000229,2]
[311792360,1705395039185,-294.22,0.000229,2]
[311792362,1705395039194,-294.22,0.000229,2]
[311792364,1705395039203,-309.90412142,0.000229,2]
[311792366,1705395039213,-540.218,0.00022977,2]
[311792368,1705395039223,-1234.0,0.00022977,2]
[311792370,1705395039232,-1253.0,0.00022977,2]
[311792372,1705395039241,-319.0,0.00022977,2]
[311792374,1705395039251,-7349.0,0.00022977,2]
[311792376,1705395039260,-3037.089,0.00022977,2]
[311792378,1705395039269,-8092.0,0.00022977,2]
[311792380,1705395039279,-2613.016,0.00022977,2]
[311792382,1705395039294,-2272.0,0.00022977,2]
[311792384,1705395039303,-19697.0,0.00022977,2]
[311792386,1705395039311,-307.087,0.00022977,2]
[311792388,1705395039320,-150.134,0.00022977,2]
[311792390,1705395039331,-1029.0,0.00022977,2]
[311792392,1705395039340,-150.0,0.00022977,2]
[311792394,1705395039348,-150.0,0.00022977,2]
[311792396,1705395039358,-727.37,0.00022987,2]
[311792398,1705395039369,-91339.5236904,0.0002299,2]
[311792400,1705395039379,-2143.98939105,0.00022997,2]
[311792402,1705395039389,-3338.57654665,0.00022997,2]
[311792404,1705395039398,-336.7179586,0.00022997,2]
[311792406,1705395039407,-7600.27237397,0.00022997,2]
[311792408,1705395039416,-20825.66704946,0.00022997,2]
[311792410,1705395039426,-316.7261477,0.00022997,2]
[311792412,1705395039435,-155.0,0.00022997,2]
[311792414,1705395039444,-1134.78992634,0.00022997,2]
[311792417,1705395039455,-432.8054114,0.00022997,2]
[311792419,1705395039465,-155.42252281,0.00022997,2]
[311792421,1705395039475,-2616.11953545,0.00022997,2]
[311792423,1705395039485,-939.56400894,0.00022997,2]
[311792425,1705395039495,-161.08188411,0.00022997,2]
[311792427,1705395039505,-3849.91637634,0.00022997,2]
[311792429,1705395039514,-234.85086633,0.00022997,2]
[311792431,1705395039523,-158.78292622,0.00022997,2]
[311792433,1705395039532,-219.97090241,0.00022997,2]
[311792435,1705395039541,-163.63015791,0.00022997,2]
[311792436,1705395039552,-6429.59170343,0.00022997,2]
[311792439,1705395039561,-2906.9147273,0.00022997,2]
[311792441,1705395039571,-2136.08960768,0.00022997,2]
[311792443,1705395039581,-155.43681351,0.00022997,2]
[311792445,1705395039591,-313.80286951,0.00022997,2]
[311792447,1705395039600,-476.16044024,0.00022998,2]
[311792449,1705395039609,-518.22457165,0.00022998,2]
[311792451,1705395039618,-280.95692375,0.00022998,2]
[311792453,1705395039627,-237.99079592,0.00022998,2]
[311792455,1705395039636,-161.44781603,0.00022998,2]
[311792457,1705395039646,-305.10785675,0.00022998,2]
[311792459,1705395039655,-757.38163137,0.00022998,2]
[311792461,1705395039664,-401.42100812,0.00022998,2]
[311792463,1705395039675,-523.86841998,0.00022998,2]
[311792465,1705395039684,-250.02290447,0.00022998,2]
[311792467,1705395039693,-376.11195413,0.00022998,2]
[311792469,1705395039702,-217.92915205,0.00022998,2]
[311792471,1705395039711,-150.01,0.00022998,2]
[311792473,1705395039721,-3091.70939303,0.00022998,2]
[311792475,1705395039730,-3295.05728793,0.00022998,2]
[311792477,1705395039739,-1374.09807185,0.00022998,2]
[311792479,1705395039749,-8196.7019568,0.00022998,2]
[311792481,1705395039757,-1000.0,0.00022999,2]
[311792483,1705395039767,-300.0,0.00022999,2]
[311792485,1705395039776,-150.0,0.00022999,2]
[311792487,1705395039785,-300.0,0.00022999,2]
[311792489,1705395039794,-151.0,0.00022999,2]
[311792491,1705395039803,-1321.0,0.00022999,2]
[311792493,1705395039812,-4449301.49344148,0.00023,2]
[311792497,1705395039839,-2546.38577049,0.00023,2]
[311792501,1705395039869,-1002.46466251,0.00023,2]
[311792503,1705395039881,-1103.44013467,0.00023,2]
[311792614,1705395043276,-346.30115323,0.00022996,2]
[311792615,1705395043289,-151.76269464,0.00022998,2]
[311792616,1705395043300,-3295.05728793,0.00022998,2]
[311792617,1705395043309,-14369.41608574,0.00023,2]
[311792618,1705395043357,-36070.22378644,0.00023,2]
[311792619,1705395043370,-3812.41600358,0.00023,2]
[311792620,1705395043383,-4501.0502454,0.00023,2]
[311792621,1705395043416,-67017.75046869,0.00023,2]
[311792622,1705395043427,-6760.01715554,0.00023,2]
[311792623,1705395043480,-448.88261105,0.00023,2]
[311792661,1705395044116,-6691.0055928,0.00023,2]
[311792662,1705395044128,-10618.63713902,0.00023,2]
[311792663,1705395044634,-268.46197776,0.00023,2]
[311792664,1705395045141,-205.50143042,0.00022997,2]
[311792665,1705395045150,-30875.065929,0.00023,2]
[311792666,1705395045162,-20246.81079668,0.00023,2]
[311792734,1705395046250,-387.81180819,0.000229,2]
[311792735,1705395046259,-221.27972556,0.00022997,2]
[311792736,1705395046269,-3711.86069082,0.00023,2]
[311792737,1705395046307,-2554.9731492,0.00023,2]
[311792738,1705395046419,-8521.284391,0.00023,2]
[311792739,1705395046532,-350.14000034,0.00022768,2]
[311792740,1705395046543,-1254.99999999,0.00022768,2]
[311792741,1705395046559,-6061.4,0.00022768,2]
[311792744,1705395100698,3185.89838635,0.0002131,2]
[311792745,1705395137346,5805.0,0.000301,90]
[311792746,1705395146173,543.69034289,0.0002131,2]
[311792747,1705395147223,155.0,0.0002131,2]
[311792748,1705395147585,10598.02269833,0.0002131,2]
[311792749,1705395150040,341.63773526,0.0002131,2]
[311792750,1705395156384,5102.03201749,0.0002131,2]
[311792751,1705395162636,280.79430241,0.00021974,2]
[311792752,1705395166446,558.84,0.00022022,2]
[311792753,1705395172704,1139.11606567,0.00021309,2]
[311792754,1705395172840,1194.42992742,0.0002131,2]
[311792755,1705395194345,226.98,0.00020028,2]
[311792756,1705395207654,158.17,0.0002189,2]
[311792757,1705395213771,206.0,0.00021624,2]
[311792758,1705395282669,331.34,0.000217,2]
[311792759,1705395293058,250.0,0.00021595,2]
[311792760,1705395339093,225.5216828,0.00021624,2]
[311792761,1705395457258,166.89,0.00021701,2]
[311792762,1705395489685,-181.37185883,0.00022091,2]
[311792763,1705395525972,150.0,0.0002177,2]
[311792764,1705395532906,-225.37162926,0.0002209,2]
[311792765,1705395533827,-150.0,0.0002209,2]
[311792766,1705395555222,158.31,0.00021553,2]
[311792767,1705395555625,158.31,0.00021984,2]
[311792768,1705395578302,-149.65521936,0.0002209,2]
[311792769,1705395600087,45.0,0.0002209,2]
[311792770,1705395600111,194.65521936,0.0002209,2]
[311792771,1705395600135,194.65521936,0.0002209,2]
[311792772,1705395600158,194.65521936,0.0002209,2]
[311792773,1705395600183,129.75610849,0.0002209,2]
[311792774,1705395640665,64.89911087,0.00021792,2]
[311792775,1705395640689,87.14088913,0.00021792,2]
[311792776,1705395660689,107.51433023,0.0002154,2]
[311792777,1705395660714,194.65521936,0.0002154,2]
[311792778,1705395660742,194.65521936,0.0002154,2]
[311792779,1705395660766,56.09523105,0.0002154,2]
[311792780,1705395670954,138.55998831,0.0002154,2]
[311792781,1705395670978,19.60001169,0.0002154,2]
[311792782,1705395730838,175.05520767,0.00021464,2]
[311792783,1705395730862,187.42479233,0.00021464,2]
[311792784,1705395735801,225.17,0.00019553,2]
[311792785,1705395736039,225.17,0.00021817,2]
[311792786,1705395760047,187.0,0.00018901,2]
[311792798,1705395856328,500.0,0.00020301,2]
[311792799,1705395857134,500.0,0.00020563,2]
[311792800,1705395857461,121.78740127,0.00020824,2]
[311792801,1705395857488,378.21259873,0.00020824,2]
[311792802,1705395857721,500.0,0.00021085,2]
[311792803,1705395858028,500.0,0.00021346,2]
[311792804,1705395858364,500.0,0.00021607,2]
[311792806,1705395858646,500.0,0.00021868,2]
[311792846,1705395888387,322.05,0.00021286,2]
[311792890,1705395945388,500.0,0.0002137,2]
[311792891,1705395945698,500.0,0.00021385,2]
[311792892,1705395946006,500.0,0.000214,2]
[311792893,1705395946866,500.0,0.00021414,2]
[311792894,1705395946965,500.0,0.00021429,2]
[311792895,1705395947053,500.0,0.00021444,2]
[311792896,1705395947259,500.0,0.00021459,2]
[311792897,1705395948117,500.0,0.00021474,2]
[311792898,1705395948447,500.0,0.00021488,2]
[311792899,1705395948773,500.0,0.00021503,2]
[311792900,1705395949102,500.0,0.00021518,2]
[311792901,1705395950146,500.0,0.00021533,2]
[311792902,1705395950427,500.0,0.00021548,2]
[311792903,1705395950668,500.0,0.00021563,2]
[311792904,1705395951358,500.0,0.00021577,2]
[311792905,1705395952430,500.0,0.00021592,2]
[311792906,1705395953201,500.0,0.00021607,2]
[311792907,1705395953501,500.0,0.00021622,2]
[311792908,1705395953791,500.0,0.00021637,2]
[311792910,1705395954081,500.0,0.00021651,2]
[311792911,1705395954392,500.0,0.00021666,2]
[311792912,1705395954716,500.0,0.00021681,2]
[311792913,1705395955041,500.0,0.00021696,2]
[311792914,1705395955352,500.0,0.00021711,2]
[311792915,1705395955656,500.0,0.00021726,2]
[311792916,1705395955955,500.0,0.0002174,2]
[311792917,1705395956285,500.0,0.00021755,2]
[311792918,1705395956552,500.0,0.0002177,2]
[311792919,1705395957425,500.0,0.00021785,2]
[311792920,1705395957539,500.0,0.000218,2]
[311792921,1705395958802,500.0,0.00021815,2]
[311792922,1705395959275,500.0,0.00021829,2]
[311792923,1705395959655,500.0,0.00021844,2]
[311792924,1705395959872,500.0,0.00021859,2]
[311792925,1705395960185,500.0,0.00021874,2]
[311792926,1705395960478,500.0,0.00021889,2]
[311792927,1705395960800,500.0,0.00021903,2]
[311792928,1705395961074,500.0,0.00021918,2]
[311792929,1705395961362,500.0,0.00021933,2]
[311792930,1705395961660,500.0,0.00021948,2]
[311792931,1705395961956,500.0,0.00021963,2]
[311792932,1705395962438,500.0,0.00021978,2]
[311792933,1705395962768,500.0,0.00021992,2]
[311792934,1705395963527,500.0,0.00022007,2]
[311792935,1705395963822,500.0,0.00022022,2]
[311792936,1705395966089,500.0,0.00022037,2]
[311792937,1705395966423,500.0,0.00022052,2]
[311792938,1705395966744,500.0,0.00022066,2]
[311792939,1705395967106,500.0,0.00022081,2]
[311792943,1705395974949,1146.91,0.00021193,2]
[311792944,1705395997358,175.3,0.00017049,2]
[311792961,1705396061919,157.26,0.00021366,2]
[311792962,1705396096094,-861.172,0.00022098,2]
[311792963,1705396096122,-153.67881354,0.000221,2]
[311792964,1705396096148,-737.97,0.00022121,2]
[311792965,1705396096174,-728.32,0.00022126,2]
[311792966,1705396096201,-709.54,0.00022131,2]
[311792967,1705396096229,-734.92,0.00022138,2]
[311792968,1705396101665,557.66,0.0002148,2]
[311792969,1705396120296,157.96,0.00021712,2]
[311792972,1705396140616,-720.01,0.00022138,2]
[311792975,1705396151650,-723.38,0.00022142,2]
[311792976,1705396151671,-730.85,0.00022146,2]
[311792977,1705396151694,-784.53918646,0.00022153,2]
[311792979,1705396167815,352.02,0.0002199,2]
[311792994,1705396228843,3185.89838635,0.00021309,2]
[311793021,1705396232358,-384.3878097,0.00022152,2]
[311793025,1705396232399,-326.9821903,0.00022152,2]
[311793026,1705396232409,-712.3,0.00022152,2]
[311793027,1705396232418,-6451.51336143,0.00022152,2]
[311793028,1705396232428,-260.50122287,0.00022153,2]
[311793029,1705396232437,-406.55,0.00022153,2]
[311793030,1705396232446,-718.3,0.00022153,2]
[311793031,1705396232455,-240.79780906,0.00022153,2]
[311793032,1705396232466,-475.66219094,0.00022153,2]
[311793033,1705396232475,-732.24,0.00022153,2]
[311793034,1705396232484,-3733.56498967,0.00022153,2]
[311793040,1705396232757,-1326.90572338,0.00022153,2]
[311793041,1705396232768,-4241.88119138,0.00022153,2]
[311793042,1705396232781,-468.33439948,0.00022153,2]
[311793046,1705396232819,-254.97541329,0.00022153,2]
[311793048,1705396232830,-1711.99249184,0.00022153,2]
[311793417,1705396238385,-7509.32662058,0.00022153,2]
[311793418,1705396238597,-538.48861522,0.00022153,2]
[311793419,1705396238620,-1328.04865887,0.00022153,2]
[311793420,1705396238675,-28886.48189629,0.00022153,2]
[311793421,1705396238684,-954.73355143,0.00022153,2]
[311793422,1705396238694,-721.2,0.00022154,2]
[311793423,1705396238704,-723.45,0.00022165,2]
[311793424,1705396238713,-720.24,0.00022179,2]
[311793425,1705396238723,-159.12293457,0.0002219,2]
[311793426,1705396238732,-730.02,0.00022195,2]
[311793427,1705396238742,-6436.33635297,0.00022195,2]
[311793428,1705396238752,-499.99,0.00022195,2]
[311793429,1705396238761,-731.93,0.00022196,2]
[311793430,1705396238770,-155.0,0.00022196,2]
[311793431,1705396238780,-3338.57654665,0.00022196,2]
[311793432,1705396238790,-336.7179586,0.00022196,2]
[311793433,1705396238802,-20825.66704946,0.00022196,2]
[311793434,1705396238815,-7600.27237397,0.00022196,2]
[311793435,1705396238825,-2143.98939105,0.00022196,2]
[311793436,1705396238834,-185.11529179,0.00022196,2]
[311793437,1705396238845,-4402.91314051,0.00022196,2]
[311793439,1705396238854,-182.04703273,0.00022196,2]
[311793440,1705396238864,-155.36887452,0.00022196,2]
[311793441,1705396238874,-163.05673702,0.00022196,2]
[311793443,1705396238884,-3443.28896719,0.00022196,2]
[311793445,1705396238894,-1040.28791122,0.00022196,2]
[311793447,1705396238904,-726.2,0.00022197,2]
[311793449,1705396238914,-939.56400894,0.00022197,2]
[311793450,1705396238924,-2616.11953545,0.00022197,2]
[311793453,1705396238933,-1134.78992634,0.00022197,2]
[311793454,1705396238943,-432.8054114,0.00022197,2]
[311793456,1705396238952,-3849.91637634,0.00022197,2]
[311793458,1705396238961,-155.42252281,0.00022197,2]
[311793461,1705396238970,-401.42100812,0.00022198,2]
[311793462,1705396238980,-161.44781603,0.00022198,2]
[311793465,1705396238990,-376.11195413,0.00022198,2]
[311793466,1705396238999,-1374.09807185,0.00022198,2]
[311793468,1705396239009,-476.16044024,0.00022198,2]
[311793470,1705396239018,-2906.9147273,0.00022198,2]
[311793472,1705396239029,-518.22457165,0.00022198,2]
[311793474,1705396239039,-237.99079592,0.00022198,2]
[311793477,1705396239049,-250.02290447,0.00022198,2]
[311793479,1705396239058,-305.10785675,0.00022198,2]
[311793481,1705396239068,-2136.08960768,0.00022198,2]
[311793483,1705396239078,-217.92915205,0.00022198,2]
[311793485,1705396239087,-155.43681351,0.00022198,2]
[311793486,1705396239097,-313.80286951,0.00022198,2]
[311793488,1705396239106,-219.97090241,0.00022198,2]
[311793490,1705396239115,-163.63015791,0.00022198,2]
[311793492,1705396239124,-521.17755723,0.00022198,2]
[311793494,1705396239134,-234.85086633,0.00022198,2]
[311793496,1705396239143,-161.08188411,0.00022198,2]
[311793499,1705396239153,-158.78292622,0.00022198,2]
[311793500,1705396239163,-714.79,0.00022198,2]
[311793503,1705396239172,-732.23,0.00022198,2]
[311793505,1705396239182,-133995.86617249,0.00022198,2]
[311793507,1705396239191,-64656.5687,0.00022199,2]
[311793508,1705396239201,-505534.28686793,0.000222,2]